bitfinex/quotes_SOLUSD_20250609
["timestamp","ask_amount","ask_price","bid_price","bid_amount"]
[1749438427312,6.59804697,151.56,151.49,6.6009525]
[1749438427609,6.59804697,151.56,151.5,14.98806891]
[1749438427610,17.40068197,151.55,151.5,14.98806891]
[1749438427788,12.52680155,151.54,151.5,12.52680155]
[1749438427983,17.40068197,151.54,151.5,12.52680155]
[1749438428210,12.52680155,151.54,151.5,12.52680155]
[1749438428407,17.40068197,151.54,151.5,12.52680155]
[1749438428612,12.52680155,151.54,151.5,12.52680155]
[1749438428800,30.04068197,151.55,151.5,12.52680155]
[1749438429615,6.59891777,151.54,151.5,12.52680155]
[1749438431519,19.12571932,151.54,151.5,12.52680155]
[1749438431722,12.52680155,151.52,151.48,12.52680155]
[1749438431930,12.52680155,151.51,151.46,12.52680155]
[1749438432518,12.52680155,151.51,151.47,12.52680155]
[1749438433311,12.52680155,151.5,151.46,12.52680155]
[1749438433606,19.12789733,151.49,151.44,1.6493]
[1749438433810,19.12789733,151.49,151.45,14.98876433]
[1749438434130,6.60109578,151.49,151.45,12.52680155]
[1749438434338,6.60109578,151.49,151.46,2.46258662]
[1749438434504,6.60109578,151.49,151.45,12.52680155]
[1749438434906,6.60109578,151.49,151.46,14.98938817]
[1749438435126,19.12789733,151.49,151.45,12.52680155]
[1749438435310,19.12789733,151.49,151.44,14.17610155]
[1749438435311,12.52680155,151.48,151.44,14.17610155]
[1749438435518,12.52680155,151.48,151.45,2.46263881]
[1749438435519,19.12859267,151.48,151.45,2.46263881]
[1749438435831,56.34680155,151.51,151.47,12.52680155]
[1749438436128,62.94717165,151.51,151.47,12.52680155]
[1749438436702,56.34680155,151.51,151.47,12.52680155]
[1749438436920,43.82,151.51,151.48,12.52680155]
[1749438437228,43.82,151.51,151.47,12.52680155]
[1749438437521,43.82,151.51,151.48,12.52680155]
[1749438437931,4.87215253,151.52,151.5,12.52680155]
[1749438438103,17.39895408,151.54,151.5,12.52680155]
[1749438438303,4.87215253,151.54,151.51,12.52680155]
[1749438438632,43.51215253,151.55,151.51,12.52680155]
[1749438439635,12.52680155,151.54,151.5,12.52680155]
[1749438439926,4.87215253,151.54,151.51,12.52680155]
[1749438440928,17.51215253,151.55,151.52,12.52680155]
[1749438441126,24.11065882,151.55,151.52,12.52680155]
[1749438441304,17.51215253,151.55,151.52,12.52680155]
[1749438442001,17.51215253,151.55,151.48,6.60153155]
[1749438442002,12.64,151.55,151.53,12.52680155]
[1749438442205,4.87215253,151.57,151.54,12.52680155]
[1749438442426,4.87215253,151.56,151.54,12.52680155]
[1749438442806,4.87215253,151.56,151.55,12.52680155]
[1749438443020,11.46977382,151.57,151.55,12.52680155]
[1749438443218,11.46977382,151.57,151.54,12.52680155]
[1749438443219,4.87215253,151.56,151.54,12.52680155]
[1749438443609,4.87215253,151.55,151.5,6.60048763]
[1749438443930,4.87215253,151.56,151.54,12.52680155]
[1749438444109,4.87215253,151.55,151.54,12.52680155]
[1749438444313,4.87215253,151.57,151.54,12.52680155]
[1749438444615,4.87215253,151.56,151.54,12.52680155]
[1749438444816,4.88079612,151.56,151.54,12.52680155]
[1749438445328,11.47858428,151.57,151.54,12.52680155]
[1749438445532,4.88079612,151.56,151.54,12.52680155]
[1749438445841,6.59778816,151.57,151.54,12.52680155]
[1749438446042,4.88033523,151.56,151.54,12.52680155]
[1749438446203,6.59778816,151.57,151.54,12.52680155]
[1749438446405,4.88030704,151.56,151.54,12.52680155]
[1749438446623,6.59778816,151.57,151.54,12.52680155]
[1749438446812,4.88053649,151.56,151.54,12.52680155]
[1749438447014,4.88076135,151.56,151.55,12.52680155]
[1749438447210,4.88076135,151.57,151.55,12.52680155]
[1749438447426,4.88076135,151.56,151.55,12.52680155]
[1749438447602,4.88076135,151.57,151.55,12.52680155]
[1749438447811,4.88076135,151.56,151.55,12.52680155]
[1749438448012,4.88076135,151.57,151.55,12.52680155]
[1749438448216,4.88076135,151.56,151.55,12.52680155]
[1749438448416,4.88076135,151.57,151.55,12.52680155]
[1749438448626,4.88076135,151.56,151.55,12.52680155]
[1749438448831,4.88076135,151.57,151.55,12.52680155]
[1749438449130,4.88076135,151.57,151.56,12.52680155]
[1749438450343,17.32076135,151.58,151.56,12.52680155]
[1749438451025,23.91807859,151.58,151.55,12.52680155]
[1749438451220,4.88076135,151.57,151.54,12.52680155]
[1749438452120,11.47867537,151.57,151.51,26.0]
[1749438452328,4.88076135,151.56,151.52,2.46650737]
[1749438452532,4.88076135,151.56,151.53,14.99330892]
[1749438452722,4.88076135,151.56,151.53,12.52680155]
[1749438453447,11.47891823,151.56,151.53,12.52680155]
[1749438454147,11.47891823,151.56,151.54,12.52680155]
[1749438454322,6.59815688,151.56,151.54,12.52680155]
[1749438454516,11.47891823,151.56,151.54,12.52680155]
[1749438454729,6.59815688,151.56,151.54,12.52680155]
[1749438454947,11.47891823,151.56,151.54,12.52680155]
[1749438455117,6.59815688,151.56,151.54,12.52680155]
[1749438455444,11.47891823,151.56,151.54,12.52680155]
[1749438455745,6.59815688,151.56,151.53,12.52680155]
[1749438455947,11.47891823,151.56,151.53,12.52680155]
[1749438457019,11.47891823,151.56,151.5,50.08053543]
[1749438457341,17.4075629,151.55,151.51,14.99377263]
[1749438457524,17.4075629,151.55,151.51,12.52680155]
[1749438457725,4.88076135,151.55,151.52,14.99372301]
[1749438457924,4.88076135,151.55,151.52,12.52680155]
[1749438458124,4.88076135,151.55,151.53,12.52680155]
[1749438458523,4.88076135,151.56,151.53,12.52680155]
[1749438458729,4.88076135,151.56,151.54,12.52680155]
[1749438459036,4.88076135,151.57,151.55,12.52680155]
[1749438459547,11.47842165,151.57,151.55,12.52680155]
[1749438459742,4.88076135,151.57,151.55,12.52680155]
[1749438459941,11.47836083,151.58,151.55,12.52680155]
[1749438460258,4.88076135,151.57,151.54,12.52680155]
[1749438461535,11.47836083,151.58,151.54,12.52680155]
[1749438461736,4.88076135,151.57,151.54,12.52680155]
[1749438464258,11.47843577,151.57,151.54,12.52680155]
[1749438464557,6.59767442,151.57,151.54,12.52680155]
[1749438464770,11.47843577,151.57,151.54,12.52680155]
[1749438464930,4.88076135,151.58,151.55,12.52680155]
[1749438465133,4.88076135,151.57,151.55,12.52680155]
[1749438466687,4.88076135,151.57,151.51,6.6002244]
[1749438466688,11.47841569,151.57,151.54,12.52680155]
[1749438466877,6.59765434,151.57,151.55,12.52680155]
[1749438467087,4.88076135,151.57,151.55,12.52680155]
[1749438468988,11.47841865,151.57,151.55,12.52680155]
[1749438469196,6.5976573,151.57,151.55,12.52680155]
[1749438469484,4.88076135,151.57,151.55,12.52680155]
[1749438469790,11.47809867,151.58,151.55,12.52680155]
[1749438469992,4.88076135,151.57,151.55,12.52680155]
[1749438471070,11.47842817,151.57,151.55,12.52680155]
[1749438471266,6.59766682,151.57,151.55,12.52680155]
[1749438471472,11.47842817,151.57,151.55,12.52680155]
[1749438471766,6.59766682,151.57,151.55,12.52680155]
[1749438471953,11.47842817,151.57,151.55,12.52680155]
[1749438472154,11.47808406,151.58,151.55,12.52680155]
[1749438472380,4.88076135,151.57,151.55,12.52680155]
[1749438473986,4.88076135,151.57,151.53,6.59929327]
[1749438474193,4.88076135,151.57,151.55,12.52680155]
[1749438478394,6.59732271,151.58,151.55,12.52680155]
[1749438478607,4.88210309,151.57,151.55,12.52680155]
[1749438478901,6.59732271,151.58,151.55,12.52680155]
[1749438479197,4.88215709,151.57,151.55,12.52680155]
[1749438479392,39.99019233,151.59,151.55,12.52680155]
[1749438479696,4.88504486,151.58,151.55,12.52680155]
[1749438480005,4.88504486,151.57,151.55,12.52680155]
[1749438480296,39.99019233,151.59,151.55,12.52680155]
[1749438480481,4.88736432,151.58,151.55,12.52680155]
[1749438480692,4.88736432,151.57,151.51,23.10072294]
[1749438480894,4.88736432,151.56,151.55,12.52680155]
[1749438481203,4.88736432,151.56,151.55,2.4714847]
[1749438481893,17.41416587,151.56,151.49,1.5324]
[1749438482088,17.41416587,151.55,151.51,12.52680155]
[1749438482286,4.88736432,151.54,151.52,14.9986551]
[1749438482486,45.12447265,151.57,151.53,2.47185355]
[1749438482689,4.89266986,151.56,151.53,12.52680155]
[1749438483014,4.89266986,151.55,151.54,12.52680155]
[1749438483385,4.89266986,151.55,151.54,14.99833349]
[1749438483583,4.89266986,151.55,151.54,12.52680155]
[1749438483882,4.89266986,151.55,151.54,14.99825893]
[1749438484079,39.49427058,151.59,151.54,14.99825893]
[1749438484294,4.89497983,151.58,151.56,12.52680155]
[1749438484499,4.89497983,151.57,151.56,12.52680155]
[1749438486696,4.89497983,151.57,151.56,21.59638281]
[1749438486895,33.39327543,151.59,151.56,21.59621616]
[1749438487197,33.39327543,151.59,151.58,12.52680155]
[1749438487406,38.28869982,151.59,151.58,14.9995566]
[1749438487713,38.28869982,151.59,151.58,14.99943482]
[1749438487893,38.28869982,151.59,151.56,12.52680155]
[1749438487894,44.88544102,151.59,151.56,12.52680155]
[1749438488200,4.89542439,151.58,151.57,2.47295693]
[1749438488404,4.89542439,151.58,151.57,2.47295754]
[1749438488972,4.89542439,151.58,151.55,12.52680155]
[1749438489300,11.49303605,151.57,151.55,12.52680155]
[1749438489507,4.89542439,151.56,151.52,26.0]
[1749438489812,17.42222594,151.55,151.53,2.47332472]
[1749438489990,4.89542439,151.54,151.5,12.52680155]
[1749438490309,4.89542439,151.53,151.51,12.52680155]
[1749438490514,12.52680155,151.55,151.52,2.473668]
[1749438490713,4.89325756,151.54,151.53,2.47366701]
[1749438491078,6.59935326,151.53,151.51,12.52680155]
[1749438491279,6.59935326,151.53,151.47,46.6825478]
[1749438491577,6.59935326,151.53,151.5,12.52680155]
[1749438492004,4.89276771,151.52,151.5,12.52680155]
[1749438492190,6.59935326,151.53,151.47,20.6825478]
[1749438492390,4.89155401,151.52,151.5,12.52680155]
[1749438492608,6.59935326,151.53,151.51,2.47099518]
[1749438492906,4.89127445,151.52,151.5,12.52680155]
[1749438493106,6.59935326,151.53,151.5,12.52680155]
[1749438493407,4.89120158,151.52,151.51,2.47101248]
[1749438493611,4.89120158,151.53,151.51,14.99781403]
[1749438493812,6.59901575,151.54,151.52,2.47087938]
[1749438493995,4.89061774,151.53,151.51,12.52680155]
[1749438494302,6.59901575,151.54,151.52,2.47090715]
[1749438494506,6.59901575,151.54,151.51,12.52680155]
[1749438494507,4.89017896,151.53,151.51,12.52680155]
[1749438494711,12.52680155,151.55,151.52,2.47091011]
[1749438494896,4.89017212,151.54,151.51,12.52680155]
[1749438495214,19.12484852,151.56,151.52,2.47080453]
[1749438495407,17.41682294,151.55,151.51,12.52680155]
[1749438495710,4.89002139,151.54,151.52,2.47087877]
[1749438495897,4.89002139,151.54,151.51,12.52680155]
[1749438495898,4.89002139,151.53,151.51,12.52680155]
[1749438496099,12.52680155,151.55,151.52,2.47087938]
[1749438496305,4.88991744,151.54,151.51,12.52680155]
[1749438496508,4.88991744,151.53,151.52,2.47016564]
[1749438497027,4.88991744,151.53,151.52,2.47016044]
[1749438497192,4.88991744,151.53,151.51,12.52680155]
[1749438497513,19.12564872,151.55,151.52,2.47017317]
[1749438497709,4.8889579,151.54,151.51,12.52680155]
[1749438498023,4.8889579,151.53,151.51,12.52680155]
[1749438498197,19.12564872,151.55,151.51,12.52680155]
[1749438498395,11.48819721,151.54,151.51,12.52680155]
[1749438498612,4.88907724,151.53,151.52,2.47019048]
[1749438498809,4.88907724,151.53,151.51,12.52680155]
[1749438499117,6.59911997,151.54,151.52,2.47015352]
[1749438499324,4.88877747,151.53,151.51,12.52680155]
[1749438499503,4.8886594,151.53,151.52,2.47021563]
[1749438500013,11.48801266,151.53,151.52,2.47021563]
[1749438500215,24.01481421,151.53,151.45,26.0]
[1749438500400,12.52680155,151.5,151.45,26.0]
[1749438500601,12.52680155,151.5,151.46,14.99758191]
[1749438500812,12.52680155,151.51,151.47,14.99755467]
[1749438501005,23.09773641,151.53,151.48,2.47066149]
[1749438501006,4.88649508,151.5,151.48,2.47066149]
[1749438501206,12.52680155,151.51,151.47,12.52680155]
[1749438501421,4.88415779,151.5,151.48,2.47076188]
[1749438501620,12.52680155,151.51,151.47,12.52680155]
[1749438501791,11.48483642,151.5,151.48,2.47076188]
[1749438501997,4.88414631,151.49,151.47,12.52680155]
[1749438502400,4.88414631,151.49,151.48,2.47080293]
[1749438502606,6.60066006,151.5,151.45,26.0]
[1749438502807,4.88221212,151.49,151.46,12.52680155]
[1749438503117,6.60066006,151.5,151.47,12.52680155]
[1749438503423,4.88210655,151.49,151.47,12.52680155]
[1749438503715,4.8804596,151.5,151.47,12.52680155]
[1749438504026,11.48091728,151.5,151.47,12.52680155]
[1749438504408,11.48091728,151.5,151.43,50.58118796]
[1749438504409,4.88018426,151.49,151.43,50.58118796]
[1749438504605,4.88018426,151.49,151.46,12.52680155]
[1749438504815,17.40698581,151.49,151.43,1.5576]
[1749438505118,12.52680155,151.48,151.44,12.52680155]
[1749438505306,17.40698581,151.49,151.45,12.52680155]
[1749438506217,6.60153155,151.48,151.45,12.52680155]
[1749438507326,6.60153155,151.48,151.46,2.47098048]
[1749438507511,6.60153155,151.48,151.45,12.52680155]
[1749438507713,6.60153155,151.48,151.46,2.47098048]
[1749438507916,6.60153155,151.48,151.45,12.52680155]
[1749438508123,6.60153155,151.48,151.46,2.47099555]
[1749438508436,12.52680155,151.49,151.45,12.52680155]
[1749438509706,12.52680155,151.49,151.43,1.5576]
[1749438509934,12.52680155,151.49,151.45,12.52680155]
[1749438510431,19.12746161,151.5,151.46,12.52680155]
[1749438511433,6.60066006,151.5,151.47,12.52680155]
[1749438513524,38.52680155,151.51,151.47,12.52680155]
[1749438513733,45.12710468,151.51,151.47,12.52680155]
[1749438516414,6.60030313,151.51,151.48,12.52680155]
[1749438516815,19.12710468,151.51,151.47,12.52680155]
[1749438517218,12.52680155,151.5,151.43,8.16098127]
[1749438517417,12.52680155,151.48,151.43,1.5576]
[1749438517731,26.0,151.5,151.43,1.5576]
[1749438517918,12.52680155,151.48,151.44,2.46272393]
[1749438518117,4.86506543,151.5,151.47,12.52680155]
[1749438518326,6.60030313,151.51,151.49,12.52680155]
[1749438518644,43.39186698,151.53,151.49,12.52680155]
[1749438518645,6.59988678,151.52,151.49,12.52680155]
[1749438518821,6.59988678,151.52,151.45,1.5509]
[1749438519134,12.52680155,151.51,151.44,26.0]
[1749438519340,12.52680155,151.49,151.45,12.52680155]
[1749438519639,12.52680155,151.5,151.45,12.52680155]
[1749438520331,6.60109578,151.49,151.45,12.52680155]
[1749438521541,19.12789733,151.49,151.42,6.60401425]
[1749438521711,19.12789733,151.49,151.45,12.52680155]
[1749438523325,6.60109578,151.49,151.46,12.52680155]
[1749438524211,19.12789733,151.49,151.45,12.52680155]
[1749438524609,6.60109578,151.49,151.46,12.52680155]
[1749438526751,6.60109578,151.49,151.42,6.6041474]
[1749438527038,6.60109578,151.49,151.46,12.52680155]
[1749438528240,6.60074389,151.5,151.48,12.52680155]
[1749438529121,6.6002244,151.51,151.48,12.52680155]
[1749438530638,17.39186698,151.52,151.49,12.52680155]
[1749438530639,11.46501432,151.52,151.49,12.52680155]
[1749438530848,6.59994889,151.52,151.5,12.52680155]
[1749438531331,37.46455336,151.53,151.5,12.52680155]
[1749438531529,32.59948793,151.53,151.5,12.52680155]
[1749438531736,37.46455336,151.53,151.5,12.52680155]
[1749438531936,32.59948793,151.53,151.5,12.52680155]
[1749438532126,37.46455336,151.53,151.5,12.52680155]
[1749438532330,32.59948793,151.53,151.5,12.52680155]
[1749438532625,11.46455336,151.53,151.51,12.52680155]
[1749438532826,6.59907594,151.54,151.52,12.52680155]
[1749438533148,11.46414137,151.54,151.52,12.52680155]
[1749438533350,6.59907594,151.54,151.52,12.52680155]
[1749438533548,4.86506543,151.53,151.52,12.52680155]
[1749438533729,6.59907594,151.54,151.52,12.52680155]
[1749438533929,4.87718106,151.54,151.53,12.52680155]
[1749438534819,4.87718106,151.54,151.52,12.52680155]
[1749438535341,11.47635403,151.54,151.52,12.52680155]
[1749438535546,6.59917297,151.54,151.52,12.52680155]
[1749438535736,11.47635403,151.54,151.52,12.52680155]
[1749438535932,6.59917297,151.54,151.52,12.52680155]
[1749438536146,11.47635403,151.54,151.52,12.52680155]
[1749438536346,6.59917297,151.54,151.52,12.52680155]
[1749438536527,11.47635403,151.54,151.52,12.52680155]
[1749438536824,6.59917297,151.54,151.52,12.52680155]
[1749438537025,11.47635403,151.54,151.52,12.52680155]
[1749438537227,6.59917297,151.54,151.52,12.52680155]
[1749438537435,11.47635403,151.54,151.52,12.52680155]
[1749438537635,6.59917297,151.54,151.48,6.88555359]
[1749438537945,6.59917297,151.54,151.52,12.52680155]
[1749438537946,11.47635403,151.54,151.52,12.52680155]
[1749438538144,6.59917297,151.54,151.52,12.52680155]
[1749438538344,11.47635403,151.54,151.52,12.52680155]
[1749438538644,6.59917297,151.54,151.52,12.52680155]
[1749438538847,11.47635403,151.54,151.52,12.52680155]
[1749438539163,6.59917297,151.54,151.48,6.88555359]
[1749438539337,4.87718106,151.53,151.5,12.52680155]
[1749438539533,4.87718106,151.53,151.51,12.52680155]
[1749438539931,6.59917297,151.54,151.51,12.52680155]
[1749438540141,11.47635403,151.54,151.53,12.52680155]
[1749438540439,6.59917297,151.54,151.53,12.52680155]
[1749438540745,4.87718106,151.54,151.53,12.52680155]
[1749438540943,4.87718106,151.55,151.53,12.52680155]
[1749438541143,19.5592996,151.57,151.54,12.52680155]
[1749438541144,12.96151611,151.57,151.54,12.52680155]
[1749438541478,12.96151611,151.57,151.56,12.52680155]
[1749438542473,11.47701382,151.6,151.56,12.52680155]
[1749438542775,11.47665332,151.61,151.59,12.52680155]
[1749438542976,11.47665332,151.61,151.6,12.52680155]
[1749438543177,37.47627711,151.62,151.6,12.52680155]
[1749438543492,11.47627711,151.62,151.61,12.52680155]
[1749438543694,32.5955984,151.62,151.61,12.52680155]
[1749438544390,32.5955984,151.62,151.58,12.52680155]
[1749438544758,32.5955984,151.62,151.59,12.52680155]
[1749438544986,32.5955984,151.62,151.61,12.52680155]
[1749438545496,32.5955984,151.62,151.59,12.52680155]
[1749438546962,32.5955984,151.62,151.58,12.52680155]
[1749438547286,32.5955984,151.62,151.59,12.52680155]
[1749438547593,32.5955984,151.62,151.6,12.52680155]
[1749438548482,32.5955984,151.62,151.59,12.52680155]
[1749438548678,61.61098984,151.62,151.56,42.02]
[1749438549069,61.61098984,151.62,151.58,12.52680155]
[1749438549270,49.08418829,151.62,151.59,12.52680155]
[1749438550164,0.5,151.61,151.59,12.52680155]
[1749438550889,6.59630606,151.6,151.59,12.52680155]
[1749438551983,6.59587098,151.61,151.59,12.52680155]
[1749438552913,6.59587098,151.61,151.6,12.52680155]
[1749438555687,6.59587098,151.61,151.58,12.52680155]
[1749438556386,0.5,151.6,151.58,12.52680155]
[1749438556589,23.08554844,151.61,151.58,12.52680155]
[1749438557387,23.08554844,151.61,151.53,6.88336375]
[1749438557574,23.08554844,151.61,151.58,12.52680155]
[1749438558088,23.08554844,151.61,151.53,42.10432314]
[1749438558289,12.52680155,151.6,151.56,12.52680155]
[1749438559388,18.64964886,151.6,151.56,12.52680155]
[1749438560417,18.64964886,151.6,151.52,64.36518273]
[1749438560418,6.5967412,151.59,151.57,12.52680155]
[1749438561278,6.59630606,151.6,151.58,12.52680155]
[1749438562600,6.59630606,151.6,151.59,12.52680155]
[1749438563502,6.59630606,151.6,151.54,6.59863722]
[1749438563700,6.59630606,151.6,151.59,12.52680155]
[1749438564079,6.59601585,151.61,151.59,12.52680155]
[1749438566594,6.59601585,151.61,151.58,12.52680155]
[1749438566791,19.1228174,151.61,151.57,12.52680155]
[1749438567300,35.61249486,151.61,151.57,12.52680155]
[1749438569818,23.08569331,151.61,151.57,12.52680155]
[1749438571715,27.94534639,151.61,151.57,12.52680155]
[1749438573597,40.47214794,151.61,151.57,12.52680155]
[1749438574186,31.17645041,151.6,151.52,51.53690155]
[1749438574402,31.17645041,151.58,151.52,13.0101]
[1749438574713,36.03610349,151.58,151.53,12.52680155]
[1749438575388,4.85965308,151.57,151.53,12.52680155]
[1749438575809,6.59804697,151.56,151.53,12.52680155]
[1749438576003,6.59804697,151.56,151.52,12.52680155]
[1749438576383,11.45770005,151.56,151.52,12.52680155]
[1749438576599,40.47961904,151.56,151.52,12.52680155]
[1749438576891,35.61996596,151.56,151.52,12.52680155]
[1749438577079,40.47961904,151.56,151.52,12.52680155]
[1749438577280,35.61996596,151.56,151.52,12.52680155]
[1749438577501,40.47961904,151.56,151.52,12.52680155]
[1749438577705,35.61996596,151.56,151.52,12.52680155]
[1749438578021,6.59891777,151.54,151.51,12.52680155]
[1749438578189,11.45857085,151.54,151.51,12.52680155]
[1749438578908,11.45857085,151.54,151.52,12.52680155]
[1749438579110,6.59891777,151.54,151.52,12.52680155]
[1749438579741,6.59891777,151.54,151.48,12.772]
[1749438579912,6.59891777,151.54,151.52,12.52680155]
[1749438581428,6.59891777,151.54,151.48,12.772]
[1749438581628,6.59891777,151.54,151.51,12.52680155]
[1749438581629,11.45857085,151.54,151.51,12.52680155]
[1749438581811,11.45857085,151.54,151.52,12.52680155]
[1749438582013,6.59891777,151.54,151.52,12.52680155]
[1749438582209,11.45857085,151.54,151.52,12.52680155]
[1749438582542,6.59891777,151.54,151.51,12.52680155]
[1749438583227,11.45857085,151.54,151.51,12.52680155]
[1749438583931,6.59891777,151.54,151.5,12.52680155]
[1749438584142,6.59891777,151.54,151.51,12.52680155]
[1749438584635,6.59891777,151.54,151.52,12.52680155]
[1749438584815,6.59891777,151.54,151.51,12.52680155]
[1749438585945,11.45823109,151.55,151.53,12.52680155]
[1749438586243,11.45823109,151.55,151.49,0.28432314]
[1749438586244,6.59857801,151.55,151.49,0.28432314]
[1749438586417,6.59857801,151.55,151.54,12.52680155]
[1749438586825,6.5981613,151.56,151.54,12.52680155]
[1749438587726,6.59761166,151.57,151.54,12.52680155]
[1749438588635,6.59761166,151.57,151.56,12.52680155]
[1749438588835,6.59761166,151.57,151.55,12.52680155]
[1749438592754,6.59761166,151.57,151.56,12.52680155]
[1749438593758,6.59761166,151.57,151.55,12.52680155]
[1749438594331,6.59761166,151.57,151.56,12.52680155]
[1749438594549,6.59761166,151.57,151.52,12.52680155]
[1749438594853,6.59761166,151.57,151.55,12.52680155]
[1749438595433,6.59761166,151.57,151.51,6.2918]
[1749438595635,6.59761166,151.57,151.54,12.52680155]
[1749438595856,11.46761623,151.57,151.54,12.52680155]
[1749438596246,6.59761166,151.57,151.54,12.52680155]
[1749438596443,11.47133141,151.57,151.54,12.52680155]
[1749438597549,40.49216212,151.57,151.53,12.52680155]
[1749438597749,4.87371975,151.56,151.53,12.52680155]
[1749438597994,40.49216212,151.57,151.53,12.52680155]
[1749438598132,11.47133141,151.57,151.55,12.52680155]
[1749438598328,6.59761166,151.57,151.55,12.52680155]
[1749438598637,6.59761166,151.57,151.56,12.52680155]
[1749438600554,6.59761166,151.57,151.53,1.5218]
[1749438600776,11.47133141,151.57,151.49,42.9218]
[1749438600936,38.52680155,151.58,151.52,12.52680155]
[1749438600937,6.59848234,151.55,151.52,12.52680155]
[1749438601335,11.47220209,151.55,151.53,12.52680155]
[1749438601548,6.59848234,151.55,151.53,12.52680155]
[1749438601952,6.59848234,151.55,151.54,12.52680155]
[1749438603169,6.59804697,151.56,151.54,12.52680155]
[1749438603347,11.47176672,151.56,151.54,12.52680155]
[1749438603538,6.59804697,151.56,151.54,12.52680155]
[1749438603738,11.47176672,151.56,151.54,12.52680155]
[1749438604060,6.59804697,151.56,151.54,12.52680155]
[1749438604639,11.47482508,151.56,151.54,12.52680155]
[1749438604847,6.59804697,151.56,151.54,12.52680155]
[1749438605066,11.47482508,151.56,151.54,12.52680155]
[1749438605238,6.59804697,151.56,151.54,12.52680155]
[1749438605440,11.47482508,151.56,151.54,12.52680155]
[1749438605655,6.59804697,151.56,151.54,12.52680155]
[1749438605963,11.47482508,151.56,151.54,12.52680155]
[1749438606137,6.59804697,151.56,151.54,12.52680155]
[1749438606335,11.47482508,151.56,151.54,12.52680155]
[1749438606553,6.59804697,151.56,151.54,12.52680155]
[1749438606753,11.47482508,151.56,151.54,12.52680155]
[1749438606966,23.52642697,151.55,151.51,12.52680155]
[1749438607162,4.87677811,151.54,151.51,12.52680155]
[1749438607842,4.87677811,151.54,151.52,12.52680155]
[1749438608042,23.52642697,151.55,151.52,12.52680155]
[1749438608444,6.59891777,151.54,151.52,12.52680155]
[1749438609239,11.47569588,151.54,151.52,12.52680155]
[1749438610759,11.47569588,151.54,151.49,1.5218]
[1749438611072,11.47569588,151.54,151.52,12.52680155]
[1749438611472,4.87677811,151.53,151.52,12.52680155]
[1749438611970,4.87677811,151.53,151.49,1.5218]
[1749438612179,4.87677811,151.53,151.5,12.52680155]
[1749438612353,35.62301376,151.54,151.5,12.52680155]
[1749438612548,4.87855284,151.53,151.5,12.52680155]
[1749438612756,11.47834164,151.52,151.5,12.52680155]
[1749438613049,6.5997888,151.52,151.49,12.52680155]
[1749438613254,11.47757017,151.52,151.49,12.52680155]
[1749438613577,6.5997888,151.52,151.49,12.52680155]
[1749438613774,11.47735928,151.52,151.5,12.52680155]
[1749438614076,6.5997888,151.52,151.5,12.52680155]
[1749438614273,11.47735928,151.52,151.5,12.52680155]
[1749438614574,6.5997888,151.52,151.49,12.52680155]
[1749438614775,11.47735928,151.52,151.49,12.52680155]
[1749438614979,6.5997888,151.52,151.5,12.52680155]
[1749438615151,11.47735928,151.52,151.5,12.52680155]
[1749438615350,6.5997888,151.52,151.5,12.52680155]
[1749438615551,11.47735928,151.52,151.5,12.52680155]
[1749438615855,6.5997888,151.52,151.5,12.52680155]
[1749438616066,11.47735928,151.52,151.5,12.52680155]
[1749438616388,6.5997888,151.52,151.5,12.52680155]
[1749438617516,6.5997888,151.52,151.51,12.52680155]
[1749438617995,11.4787258,151.52,151.5,12.52680155]
[1749438618195,6.5997888,151.52,151.5,12.52680155]
[1749438618394,6.5997888,151.52,151.46,6.60223549]
[1749438618395,11.47867805,151.52,151.51,12.52680155]
[1749438618698,6.5997888,151.52,151.51,12.52680155]
[1749438618909,4.87888925,151.53,151.51,12.52680155]
[1749438619065,4.88041577,151.54,151.52,12.52680155]
[1749438619271,11.47964661,151.54,151.53,12.52680155]
[1749438619771,6.59919817,151.54,151.53,12.52680155]
[1749438620875,25.24769583,151.56,151.53,12.52680155]
[1749438621203,4.8815069,151.55,151.53,12.52680155]
[1749438621390,6.59804697,151.56,151.53,12.52680155]
[1749438621585,4.88128222,151.55,151.54,12.52680155]
[1749438622077,4.88128222,151.55,151.53,12.52680155]
[1749438622277,6.59804697,151.56,151.53,12.52680155]
[1749438622600,4.88128328,151.55,151.52,12.52680155]
[1749438622795,4.88128328,151.54,151.52,12.52680155]
[1749438623004,6.59891777,151.54,151.52,12.52680155]
[1749438623177,11.48020105,151.54,151.52,12.52680155]
[1749438623374,6.59891777,151.54,151.52,12.52680155]
[1749438623788,4.88128328,151.53,151.51,12.52680155]
[1749438624088,6.59891777,151.54,151.5,12.52680155]
[1749438624399,4.88061111,151.53,151.5,12.52680155]
[1749438624603,4.88061111,151.52,151.5,12.52680155]
[1749438624780,4.88061111,151.53,151.51,12.52680155]
[1749438624980,11.48070125,151.52,151.51,12.52680155]
[1749438625303,6.60009014,151.52,151.51,12.52680155]
[1749438625797,11.48070125,151.52,151.5,12.52680155]
[1749438625979,6.60009014,151.52,151.51,12.52680155]
[1749438626182,11.48070125,151.52,151.51,12.52680155]
[1749438626487,6.60009014,151.52,151.5,12.52680155]
[1749438626995,11.48070125,151.52,151.5,12.52680155]
[1749438627200,6.60009014,151.52,151.5,12.52680155]
[1749438627697,6.59935326,151.53,151.46,8.12262981]